fUSD/lending_fUSD_20260613
["ID","MTS","AMOUNT","RATE_DAILY","PERIOD"]
[424951828,1781337422000,-350.0,7.791e-05,2]
[424951832,1781337476000,-241.0,7.877e-05,2]
[424951834,1781337529000,-163.25,7.674e-05,2]
[424951835,1781337583000,-150.0,7.887e-05,2]
[424951836,1781337637000,-250.0,7.896e-05,2]
[424951842,1781337649000,1852.42,7.516e-05,2]
[424951844,1781337689000,-466.5197,7.878e-05,2]
[424951845,1781337705000,899.08,7.33e-05,2]
[424951846,1781337743000,-250.0,7.913e-05,2]
[424951847,1781337899000,-270.38,7.915e-05,2]
[424951848,1781337899000,3302.04,7.28e-05,2]
[424951849,1781337953000,-2000.0,7.878e-05,2]
[424951850,1781337980000,-2598.8,7.878e-05,2]
[424951853,1781338004000,2180.73,7.332e-05,2]
[424951852,1781338004000,-300.0,7.877e-05,2]
[424951855,1781338005000,500.0,1.16e-06,2]
[424951854,1781338005000,500.0,1.27e-06,2]
[424951856,1781338022000,186.88352,7.435e-05,2]
[424951857,1781338022000,103.56648,7.435e-05,2]
[424951858,1781338057000,-3314.068,7.878e-05,2]
[424951859,1781338060000,500.0,7.331e-05,2]
[424951861,1781338060000,500.0,7.331e-05,2]
[424951860,1781338060000,500.0,7.331e-05,2]
[424951866,1781338061000,326.4433381,7.331e-05,2]
[424951865,1781338061000,500.0,7.331e-05,2]
[424951864,1781338061000,500.0,7.331e-05,2]
[424951863,1781338061000,500.0,7.331e-05,2]
[424951862,1781338061000,500.0,7.331e-05,2]
[424951867,1781338084000,-500.0,7.877e-05,2]
[424951868,1781338085000,500.0,7.331e-05,2]
[424951870,1781338085000,795.35,7.297e-05,2]
[424951869,1781338085000,350.3207418,7.331e-05,2]
[424951873,1781338089000,530.57733524,7.331e-05,2]
[424951872,1781338089000,500.0,7.331e-05,2]
[424951871,1781338089000,500.0,7.331e-05,2]
[424951875,1781338105000,350.3207418,7.331e-05,2]
[424951878,1781338106000,2181.76863694,7.381e-05,2]
[424951877,1781338106000,2043.42136306,7.381e-05,2]
[424951876,1781338106000,500.0,7.331e-05,2]
[424951879,1781338138000,-500.0,7.876e-05,2]
[424951881,1781338138000,-2551.22696962,7.778e-05,2]
[424951880,1781338138000,-3131.82472754,7.778e-05,2]
[424951882,1781338138000,-3131.82472754,7.778e-05,2]
[424951887,1781338154000,-1330.57791992,7.778e-05,2]
[424951886,1781338154000,-3308.12225603,7.778e-05,2]
[424951885,1781338154000,-2986.12225603,7.778e-05,2]
[424951883,1781338154000,-172.0,7.777e-05,2]
[424951884,1781338154000,-150.0,7.777e-05,2]
[424951888,1781338159000,-10000.0,7.778e-05,2]
[424951889,1781338163000,-10000.0,7.778e-05,2]
[424951890,1781338164000,-10000.0,7.778e-05,2]
[424951891,1781338165000,-10000.0,7.778e-05,2]
[424951892,1781338166000,-10000.0,7.778e-05,2]
[424951893,1781338167000,-10000.0,7.778e-05,2]
[424951894,1781338168000,-10000.0,7.778e-05,2]
[424951895,1781338191000,-1998.32093237,7.778e-05,2]
[424951901,1781338192000,-500.0,7.876e-05,2]
[424951896,1781338192000,-1965.66618703,7.778e-05,2]
[424951897,1781338192000,-749.62172392,7.778e-05,2]
[424951898,1781338192000,-150.0,7.855e-05,2]
[424951900,1781338192000,-500.0,7.876e-05,2]
[424951899,1781338192000,-500.0,7.876e-05,2]
[424951902,1781338192000,-500.0,7.876e-05,2]
[424951903,1781338192000,-500.0,7.876e-05,2]
[424951907,1781338192000,-500.0,7.876e-05,2]
[424951905,1781338192000,-500.0,7.876e-05,2]
[424951906,1781338192000,-500.0,7.876e-05,2]
[424951908,1781338192000,-500.0,7.876e-05,2]
[424951909,1781338192000,-500.0,7.876e-05,2]
[424951910,1781338192000,-500.0,7.876e-05,2]
[424951912,1781338192000,-500.0,7.876e-05,2]
[424951911,1781338192000,-500.0,7.876e-05,2]
[424951904,1781338192000,-500.0,7.876e-05,2]
[424951920,1781338193000,-420.89967616,7.876e-05,2]
[424951918,1781338193000,-399.62172392,7.876e-05,2]
[424951919,1781338193000,-500.0,7.876e-05,2]
[424951913,1781338193000,-500.0,7.876e-05,2]
[424951916,1781338193000,-500.0,7.876e-05,2]
[424951914,1781338193000,-500.0,7.876e-05,2]
[424951922,1781338193000,-500.0,7.876e-05,2]
[424951917,1781338193000,-100.37827608,7.876e-05,2]
[424951923,1781338193000,-500.0,7.876e-05,2]
[424951915,1781338193000,-500.0,7.876e-05,2]
[424951927,1781338193000,-350.3207418,7.876e-05,2]
[424951933,1781338193000,-350.3207418,7.876e-05,2]
[424951921,1781338193000,-500.0,7.876e-05,2]
[424951931,1781338193000,-350.3207418,7.876e-05,2]
[424951930,1781338193000,-500.0,7.876e-05,2]
[424951932,1781338193000,-500.0,7.876e-05,2]
[424951928,1781338193000,-500.0,7.876e-05,2]
[424951925,1781338193000,-350.3207418,7.876e-05,2]
[424951926,1781338193000,-500.0,7.876e-05,2]
[424951924,1781338193000,-500.0,7.876e-05,2]
[424951929,1781338193000,-350.3207418,7.876e-05,2]
[424951936,1781338215000,350.3207418,7.876e-05,2]
[424951935,1781338215000,500.0,7.876e-05,2]
[424951934,1781338215000,-500.0,7.877e-05,2]
[424951937,1781338224000,300.0,7.876e-05,2]
[424951957,1781338231000,-258.37163805,7.878e-05,2]
[424951955,1781338231000,-10.21538992,7.877e-05,2]
[424951953,1781338231000,-294.29707628,7.877e-05,2]
[424951948,1781338231000,-157.94087491,7.877e-05,2]
[424951956,1781338231000,-289.22774808,7.877e-05,2]
[424951951,1781338231000,-176.47557506,7.877e-05,2]
[424951947,1781338231000,-342.05912509,7.877e-05,2]
[424951954,1781338231000,-283.13421543,7.877e-05,2]
[424951949,1781338231000,-156.22601334,7.877e-05,2]
[424951946,1781338231000,-148.97692461,7.877e-05,2]
[424951945,1781338231000,-351.02307539,7.877e-05,2]
[424951959,1781338231000,-315.42809693,7.878e-05,2]
[424951952,1781338231000,-18.94547476,7.877e-05,2]
[424951962,1781338231000,-2282.29507063,7.878e-05,2]
[424951950,1781338231000,-162.460462,7.877e-05,2]
[424951958,1781338231000,-985.83311175,7.878e-05,2]
[424951963,1781338231000,-468.75595281,7.878e-05,2]
[424951972,1781338231000,-361.61769362,7.914e-05,2]
[424951973,1781338231000,-150.0,7.933e-05,2]
[424951975,1781338231000,-20232.672201,7.945e-05,2]
[424951971,1781338231000,-1001.55355173,7.914e-05,2]
[424951968,1781338231000,-346.47208398,7.878e-05,2]
[424951969,1781338231000,-1292.2457146,7.878e-05,2]
[424951970,1781338231000,-35846.02004215,7.878e-05,2]
[424951965,1781338231000,-313.90125887,7.878e-05,2]
[424951967,1781338231000,-1342.6,7.878e-05,2]
[424951964,1781338231000,-3610.42041751,7.878e-05,2]
[424951961,1781338231000,-544.02,7.878e-05,2]
[424951966,1781338231000,-984.68337832,7.878e-05,2]
[424951960,1781338231000,-1663.6855344,7.878e-05,2]
[424952005,1781338232000,-450.0,8.219e-05,2]
[424952014,1781338232000,-300.0,8.555e-05,2]
[424952012,1781338232000,-500.0,8.493e-05,2]
[424952011,1781338232000,-163.25,8.307e-05,2]
[424952010,1781338232000,-899.08,8.247e-05,2]
[424952008,1781338232000,-242.58,8.219e-05,2]
[424952009,1781338232000,-500.0,8.219e-05,2]
[424952006,1781338232000,-2599.49,8.219e-05,2]
[424952016,1781338232000,-255.0,8.555e-05,2]
[424952007,1781338232000,-2000.0,8.219e-05,2]
[424952013,1781338232000,-300.0,8.555e-05,2]
[424952015,1781338232000,-300.0,8.555e-05,2]
[424952029,1781338232000,-150.0,8.753e-05,2]
[424952017,1781338232000,-163.25,8.624e-05,2]
[424952024,1781338232000,-32246.04739048,8.704e-05,2]
[424952019,1781338232000,-193.0,8.664e-05,2]
[424952020,1781338232000,-250.0,8.664e-05,2]
[424952023,1781338232000,-12218.96705856,8.704e-05,2]
[424952025,1781338232000,-150.0,8.753e-05,2]
[424952022,1781338232000,-242.58,8.676e-05,2]
[424952021,1781338232000,-300.0,8.666e-05,2]
[424952028,1781338232000,-150.0,8.753e-05,2]
[424952026,1781338232000,-150.22274452,8.753e-05,2]
[424952035,1781338232000,-500.0,8.767e-05,2]
[424952004,1781338232000,-555.07933474,8.219e-05,2]
[424952018,1781338232000,-342.04670984,8.664e-05,2]
[424952001,1781338232000,-500.0,8.219e-05,2]
[424951982,1781338232000,-151.0,7.975e-05,2]
[424952002,1781338232000,-500.0,8.219e-05,2]
[424952027,1781338232000,-150.13954367,8.753e-05,2]
[424951979,1781338232000,-21037.71,7.975e-05,2]
[424951977,1781338232000,-162.13261455,7.948e-05,2]
[424951976,1781338232000,-162.13261455,7.948e-05,2]
[424951978,1781338232000,-162.13261455,7.948e-05,2]
[424951980,1781338232000,-2381.38,7.975e-05,2]
[424951983,1781338232000,-154.70902674,7.99e-05,2]
[424951981,1781338232000,-151.0,7.975e-05,2]
[424951989,1781338232000,-163.25,7.99e-05,2]
[424951991,1781338232000,-160.0,8.01e-05,2]
[424951985,1781338232000,-8633.66,7.99e-05,2]
[424951986,1781338232000,-150.99,7.99e-05,2]
[424951984,1781338232000,-299.99,7.99e-05,2]
[424951990,1781338232000,-216.029201,8.007e-05,2]
[424951987,1781338232000,-1631.81,7.99e-05,2]
[424951988,1781338232000,-9999.99,7.99e-05,2]
[424951993,1781338232000,-27140.06,8.027e-05,2]
[424952003,1781338232000,-500.0,8.219e-05,2]
[424951997,1781338232000,-500.0,8.219e-05,2]
[424951992,1781338232000,-150.0,8.01e-05,2]
[424951996,1781338232000,-6979.185874,8.178e-05,2]
[424951994,1781338232000,-193.0,8.088e-05,2]
[424951995,1781338232000,-579.53,8.094e-05,2]
[424951998,1781338232000,-500.0,8.219e-05,2]
[424951999,1781338232000,-500.0,8.219e-05,2]
[424952000,1781338232000,-500.0,8.219e-05,2]
[424952031,1781338232000,-150.0,8.753e-05,2]
[424952065,1781338232000,-433.0,9.41e-05,2]
[424952030,1781338232000,-150.0,8.753e-05,2]
[424952069,1781338232000,-150.0,9.549e-05,2]
[424952068,1781338232000,-231.21,9.52e-05,2]
[424952067,1781338232000,-150.0,9.483e-05,2]
[424952089,1781338232000,-163.611461,9.727e-05,2]
[424952064,1781338232000,-150.0,9.402e-05,2]
[424952066,1781338232000,-150.0,9.461e-05,2]
[424952070,1781338232000,-500.0,9.589e-05,2]
[424952072,1781338232000,-2170.741392,9.604e-05,2]
[424952074,1781338232000,-85097.82924579,9.604e-05,2]
[424952075,1781338232000,-115140.3858,9.604e-05,2]
[424952082,1781338232000,-154.45182715,9.726e-05,2]
[424952073,1781338232000,-56885.84984292,9.604e-05,2]
[424952078,1781338232000,-8693.5177,9.635e-05,2]
[424952076,1781338232000,-394.25461245,9.611e-05,2]
[424952077,1781338232000,-350.0,9.631e-05,2]
[424952081,1781338232000,-500.0,9.725e-05,2]
[424952080,1781338232000,-68835.53221496,9.64e-05,2]
[424952079,1781338232000,-150.0,9.638e-05,2]
[424952084,1781338232000,-157.82360452,9.726e-05,2]
[424952083,1781338232000,-151.67579385,9.726e-05,2]
[424952088,1781338232000,-2004.931728,9.727e-05,2]
[424952085,1781338232000,-155.30128715,9.726e-05,2]
[424952086,1781338232000,-155.86116887,9.726e-05,2]
[424952087,1781338232000,-174.0991703,9.726e-05,2]
[424952036,1781338232000,-150.0,8.842e-05,2]
[424952071,1781338232000,-242.58,9.589e-05,2]
[424952061,1781338232000,-500.0,9.315e-05,2]
[424952063,1781338232000,-150.0,9.402e-05,2]
[424952059,1781338232000,-150.0,9.284e-05,2]
[424952032,1781338232000,-150.0,8.753e-05,2]
[424952037,1781338232000,-4858.56934926,8.87e-05,2]
[424952033,1781338232000,-150.0,8.753e-05,2]
[424952034,1781338232000,-150.0,8.753e-05,2]
[424952039,1781338232000,-501.83956658,8.92e-05,2]
[424952038,1781338232000,-1000.0,8.919e-05,2]
[424952042,1781338232000,-5000.0,8.935e-05,2]
[424952043,1781338232000,-163.25,8.94e-05,2]
[424952040,1781338232000,-253.07395249,8.925e-05,2]
[424952041,1781338232000,-150.0,8.93e-05,2]
[424952048,1781338232000,-500.0,9.041e-05,2]
[424952045,1781338232000,-150.0,8.997e-05,2]
[424952062,1781338232000,-150.0,9.372e-05,2]
[424952047,1781338232000,-10396.38845252,9.04e-05,2]
[424952044,1781338232000,-181.4529841,8.946e-05,2]
[424952058,1781338232000,-2000.0,9.247e-05,2]
[424952053,1781338232000,-899.08,9.163e-05,2]
[424952056,1781338232000,-150.0,9.24e-05,2]
[424952046,1781338232000,-150.0,9.019e-05,2]
[424952057,1781338232000,-150.0,9.24e-05,2]
[424952055,1781338232000,-150.0,9.196e-05,2]
[424952051,1781338232000,-150.0,9.107e-05,2]
[424952060,1781338232000,-151.0,9.312e-05,2]
[424952054,1781338232000,-31705.3014,9.177e-05,2]
[424952050,1781338232000,-150.0,9.078e-05,2]
[424952049,1781338232000,-150.0,9.078e-05,2]
[424952052,1781338232000,-242.58,9.132e-05,2]
[424952090,1781338233000,-3651.7422877,9.73e-05,2]
[424952091,1781338233000,-17276.24352137,9.73e-05,2]
[424952093,1781338233000,-22795.38810742,9.73e-05,2]
[424952094,1781338233000,-9818.31668976,9.73e-05,2]
[424952096,1781338233000,-2788.36818705,9.73e-05,2]
[424952095,1781338233000,-38597.40119117,9.73e-05,2]
[424952099,1781338233000,-12361.07127481,9.73e-05,2]
[424952098,1781338233000,-1241.56,9.73e-05,2]
[424952097,1781338233000,-5880.0,9.73e-05,2]
[424952092,1781338233000,-4353.01569893,9.73e-05,2]
[424952110,1781338239000,-780.23250482,9.73e-05,2]
[424952111,1781338239000,-2208.74522651,9.73e-05,2]
[424952112,1781338239000,-3274.85972911,9.73e-05,2]
[424952108,1781338239000,-516.70824417,9.73e-05,2]
[424952113,1781338239000,-4430.62905905,9.73e-05,2]
[424952114,1781338239000,-4259.94632463,9.73e-05,2]
[424952109,1781338239000,-545.85460464,9.73e-05,2]
[424952145,1781338240000,-500.0,9.73e-05,2]
[424952133,1781338240000,-500.0,9.73e-05,2]
[424952137,1781338240000,-500.0,9.73e-05,2]
[424952138,1781338240000,-500.0,9.73e-05,2]
[424952139,1781338240000,-500.0,9.73e-05,2]
[424952140,1781338240000,-500.0,9.73e-05,2]
[424952141,1781338240000,-500.0,9.73e-05,2]
[424952142,1781338240000,-500.0,9.73e-05,2]
[424952148,1781338240000,-500.0,9.73e-05,2]
[424952144,1781338240000,-500.0,9.73e-05,2]
[424952147,1781338240000,-500.0,9.73e-05,2]
[424952146,1781338240000,-500.0,9.73e-05,2]
[424952136,1781338240000,-500.0,9.73e-05,2]
[424952143,1781338240000,-500.0,9.73e-05,2]
[424952150,1781338240000,-500.0,9.73e-05,2]
[424952152,1781338240000,-500.0,9.73e-05,2]
[424952151,1781338240000,-500.0,9.73e-05,2]
[424952149,1781338240000,-500.0,9.73e-05,2]
[424952135,1781338240000,-500.0,9.73e-05,2]
[424952123,1781338240000,-500.0,9.73e-05,2]
[424952132,1781338240000,-500.0,9.73e-05,2]
[424952154,1781338240000,-500.0,9.73e-05,2]
[424952115,1781338240000,-500.0,7.877e-05,2]
[424952118,1781338240000,-2153.2553334,9.73e-05,2]
[424952116,1781338240000,-208.3494754,7.877e-05,2]
[424952117,1781338240000,-98810.39496766,9.73e-05,2]
[424952119,1781338240000,-7019.0988958,9.73e-05,2]
[424952120,1781338240000,-500.0,9.73e-05,2]
[424952121,1781338240000,-500.0,9.73e-05,2]
[424952128,1781338240000,-500.0,9.73e-05,2]
[424952125,1781338240000,-500.0,9.73e-05,2]
[424952127,1781338240000,-500.0,9.73e-05,2]
[424952124,1781338240000,-500.0,9.73e-05,2]
[424952122,1781338240000,-500.0,9.73e-05,2]
[424952126,1781338240000,-500.0,9.73e-05,2]
[424952130,1781338240000,-500.0,9.73e-05,2]
[424952131,1781338240000,-500.0,9.73e-05,2]
[424952129,1781338240000,-500.0,9.73e-05,2]
[424952134,1781338240000,-500.0,9.73e-05,2]
[424952153,1781338240000,-500.0,9.73e-05,2]
[424952195,1781338240000,-500.0,9.73e-05,2]
[424952158,1781338240000,-500.0,9.73e-05,2]
[424952180,1781338240000,-500.0,9.73e-05,2]
[424952176,1781338240000,-500.0,9.73e-05,2]
[424952173,1781338240000,-500.0,9.73e-05,2]
[424952184,1781338240000,-500.0,9.73e-05,2]
[424952187,1781338240000,-500.0,9.73e-05,2]
[424952200,1781338240000,-500.0,9.73e-05,2]
[424952202,1781338240000,-500.0,9.73e-05,2]
[424952204,1781338240000,-500.0,9.73e-05,2]
[424952208,1781338240000,-500.0,9.73e-05,2]
[424952206,1781338240000,-500.0,9.73e-05,2]
[424952211,1781338240000,-500.0,9.73e-05,2]
[424952198,1781338240000,-500.0,9.73e-05,2]
[424952214,1781338240000,-500.0,9.73e-05,2]
[424952191,1781338240000,-500.0,9.73e-05,2]
[424952193,1781338240000,-500.0,9.73e-05,2]
[424952213,1781338240000,-500.0,9.73e-05,2]
[424952156,1781338240000,-500.0,9.73e-05,2]
[424952175,1781338240000,-500.0,9.73e-05,2]
[424952182,1781338240000,-500.0,9.73e-05,2]
[424952189,1781338240000,-500.0,9.73e-05,2]
[424952178,1781338240000,-500.0,9.73e-05,2]
[424952155,1781338240000,-500.0,9.73e-05,2]
[424952157,1781338240000,-500.0,9.73e-05,2]
[424952174,1781338240000,-500.0,9.73e-05,2]
[424952160,1781338240000,-500.0,9.73e-05,2]
[424952159,1781338240000,-500.0,9.73e-05,2]
[424952162,1781338240000,-500.0,9.73e-05,2]
[424952167,1781338240000,-500.0,9.73e-05,2]
[424952171,1781338240000,-500.0,9.73e-05,2]
[424952169,1781338240000,-500.0,9.73e-05,2]
[424952161,1781338240000,-500.0,9.73e-05,2]
[424952166,1781338240000,-500.0,9.73e-05,2]
[424952163,1781338240000,-500.0,9.73e-05,2]
[424952168,1781338240000,-500.0,9.73e-05,2]
[424952170,1781338240000,-500.0,9.73e-05,2]
[424952165,1781338240000,-500.0,9.73e-05,2]
[424952177,1781338240000,-500.0,9.73e-05,2]
[424952172,1781338240000,-500.0,9.73e-05,2]
[424952164,1781338240000,-500.0,9.73e-05,2]
[424952233,1781338241000,-151.0,9.732e-05,2]
[424952231,1781338241000,-833.3189264,9.731e-05,2]
[424952234,1781338241000,-151.0,9.732e-05,2]
[424952225,1781338241000,-398.786146,9.73e-05,2]
[424952226,1781338241000,-151.0,9.73e-05,2]
[424952223,1781338241000,-500.0,9.73e-05,2]
[424952220,1781338241000,-500.0,9.73e-05,2]
[424952215,1781338241000,-500.0,9.73e-05,2]
[424952219,1781338241000,-500.0,9.73e-05,2]
[424952221,1781338241000,-500.0,9.73e-05,2]
[424952218,1781338241000,-500.0,9.73e-05,2]
[424952217,1781338241000,-500.0,9.73e-05,2]
[424952232,1781338241000,-3557.5560387,9.731e-05,2]
[424952222,1781338241000,-500.0,9.73e-05,2]
[424952227,1781338241000,-761.357904,9.73e-05,2]
[424952216,1781338241000,-500.0,9.73e-05,2]
[424952230,1781338241000,-761.357904,9.73e-05,2]
[424952242,1781338241000,-20008.12896508,9.735e-05,2]
[424952245,1781338241000,-11573.99686272,9.735e-05,2]
[424952244,1781338241000,-332.11298935,9.735e-05,2]
[424952243,1781338241000,-1124.99793977,9.735e-05,2]
[424952246,1781338241000,-17430.354052,9.735e-05,2]
[424952240,1781338241000,-1987718.73238209,9.735e-05,2]
[424952237,1781338241000,-523.4004802,9.734e-05,2]
[424952228,1781338241000,-761.357904,9.73e-05,2]
[424952241,1781338241000,-43131.14140928,9.735e-05,2]
[424952238,1781338241000,-7177.7676927,9.734e-05,2]
[424952239,1781338241000,-159774.8124572,9.734e-05,2]
[424952235,1781338241000,-10696.6840735,9.732e-05,2]
[424952236,1781338241000,-1185.91809648,9.734e-05,3]
[424952229,1781338241000,-761.357904,9.73e-05,2]
[424952247,1781338241000,-1220.32136773,9.735e-05,2]
[424952248,1781338242000,-627.39910709,9.735e-05,2]
[424952261,1781338242000,-4405.2898646,9.735e-05,2]
[424952249,1781338242000,-4730.75089867,9.735e-05,2]
[424952266,1781338246000,-2622.43486829,9.735e-05,2]
[424952265,1781338246000,-818.0,9.735e-05,2]
[424952263,1781338246000,-785.48129672,9.735e-05,2]
[424952264,1781338246000,-1551.22433577,9.735e-05,2]
[424952267,1781338274000,1777.55414912,7.778e-05,2]
[424952268,1781338369000,-153.57284253,7.748e-05,2]
[424952269,1781338423000,-153.57284253,7.748e-05,2]
[424952270,1781338476000,-188.94982298,7.623e-05,2]
[424952271,1781338530000,-1463.75826784,7.623e-05,2]
[424952275,1781338584000,-1732.156,7.623e-05,2]
[424952277,1781338637000,-2133.23,7.678e-05,2]
[424952278,1781338661000,-1998.32093237,7.678e-05,2]
[424952280,1781338685000,150.0,7.448e-05,2]
[424952279,1781338685000,-49.25136763,7.678e-05,2]
[424952281,1781338689000,150.0,7.563e-05,2]
[424952282,1781338737000,-2500.0,7.678e-05,2]
[424952283,1781338759000,-2500.0,7.678e-05,2]
[424952287,1781338902000,-150.0,7.675e-05,2]
[424952288,1781338955000,-500.0,7.676e-05,2]
[424952289,1781339008000,-358.84045348,7.675e-05,2]
[424952291,1781339062000,-500.0,7.676e-05,2]
[424952292,1781339115000,-150.0,7.675e-05,2]
[424952293,1781339131000,2133.23,7.539e-05,2]
[424952294,1781339167000,-500.0,7.674e-05,2]
[424952296,1781339222000,-500.0,7.673e-05,2]
[424952297,1781339227000,150.0,7.443e-05,2]
[424952299,1781339251000,1865.3649,7.578e-05,2]
[424952298,1781339251000,688.13647899,7.283e-05,2]
[424952300,1781339275000,-219.26978573,7.673e-05,2]
[424952301,1781339329000,-160.0,7.675e-05,2]
[424952305,1781339354000,-535.6652728,7.678e-05,2]
[424952304,1781339354000,-3317.03857732,7.678e-05,2]
[424952303,1781339354000,-3046.0308739,7.678e-05,2]
[424952302,1781339354000,-271.00770342,7.676e-05,2]
[424952306,1781339382000,-672.02587598,7.678e-05,2]
[424952308,1781339401000,10000.0,7.574e-05,2]
[424952307,1781339401000,2681.49998407,7.574e-05,2]
[424952310,1781339401000,10000.0,7.574e-05,2]
[424952314,1781339401000,10000.0,7.574e-05,2]
[424952311,1781339401000,10000.0,7.574e-05,2]
[424952312,1781339401000,10000.0,7.574e-05,2]
[424952313,1781339401000,10000.0,7.574e-05,2]
[424952309,1781339401000,10000.0,7.574e-05,2]
[424952317,1781339406000,-1276.79478123,7.574e-05,2]
[424952316,1781339406000,-3460.43342587,7.574e-05,2]
[424952315,1781339406000,-3460.43342587,7.574e-05,2]
[424952319,1781339431000,-18191.60070677,7.574e-05,2]
[424952323,1781339432000,-741.10780409,7.574e-05,2]
[424952320,1781339432000,-930.70635496,7.574e-05,2]
[424952322,1781339432000,-808.4534481,7.574e-05,2]
[424952321,1781339432000,-444.0,7.574e-05,2]
[424952326,1781339432000,-30282.15113121,7.574e-05,2]
[424952324,1781339432000,-178771.91673827,7.574e-05,2]
[424952327,1781339432000,-63896.82169663,7.574e-05,2]
[424952332,1781339432000,-356.44950306,7.574e-05,2]
[424952328,1781339432000,-1507.28120465,7.574e-05,2]
[424952330,1781339432000,-2162.22959595,7.574e-05,2]
[424952329,1781339432000,-302.77030002,7.574e-05,2]
[424952331,1781339432000,-330.96948114,7.574e-05,2]
[424952325,1781339432000,-13834.08565129,7.574e-05,2]
[424952341,1781339438000,-1158.67285135,7.574e-05,2]
[424952342,1781339438000,-781.46068898,7.574e-05,2]
[424952343,1781339438000,-983.744131,7.574e-05,2]
[424952346,1781339438000,-701.9300801,7.574e-05,2]
[424952344,1781339438000,-5879.61075856,7.574e-05,2]
[424952347,1781339438000,-448.0,7.574e-05,2]
[424952348,1781339438000,-596.22486922,7.574e-05,2]
[424952349,1781339438000,-14078.95110786,7.574e-05,2]
[424952351,1781339438000,-3450.39676341,7.574e-05,2]
[424952350,1781339438000,-418.98263072,7.574e-05,2]
[424952345,1781339438000,-534.4486427,7.574e-05,2]
[424952384,1781339440000,-500.0,7.677e-05,2]
[424952377,1781339440000,-500.0,7.677e-05,2]
[424952376,1781339440000,-500.0,7.677e-05,2]
[424952379,1781339440000,-500.0,7.677e-05,2]
[424952381,1781339440000,-500.0,7.677e-05,2]
[424952380,1781339440000,-500.0,7.677e-05,2]
[424952382,1781339440000,-500.0,7.677e-05,2]
[424952383,1781339440000,-500.0,7.677e-05,2]
[424952386,1781339440000,-500.0,7.677e-05,2]
[424952396,1781339440000,-500.0,7.677e-05,2]
[424952387,1781339440000,-500.0,7.677e-05,2]
[424952385,1781339440000,-500.0,7.677e-05,2]
[424952389,1781339440000,-500.0,7.677e-05,2]
[424952390,1781339440000,-500.0,7.677e-05,2]
[424952391,1781339440000,-500.0,7.677e-05,2]
[424952392,1781339440000,-500.0,7.677e-05,2]
[424952393,1781339440000,-500.0,7.677e-05,2]
[424952378,1781339440000,-500.0,7.677e-05,2]
[424952394,1781339440000,-500.0,7.677e-05,2]
[424952388,1781339440000,-500.0,7.677e-05,2]
[424952374,1781339440000,-500.0,7.677e-05,2]
[424952366,1781339440000,-500.0,7.677e-05,2]
[424952373,1781339440000,-500.0,7.677e-05,2]
[424952354,1781339440000,-500.0,7.677e-05,2]
[424952353,1781339440000,-1920896.67044292,7.574e-05,2]
[424952356,1781339440000,-500.0,7.677e-05,2]
[424952355,1781339440000,-500.0,7.677e-05,2]
[424952358,1781339440000,-500.0,7.677e-05,2]
[424952359,1781339440000,-500.0,7.677e-05,2]
[424952357,1781339440000,-500.0,7.677e-05,2]
[424952360,1781339440000,-500.0,7.677e-05,2]
[424952362,1781339440000,-500.0,7.677e-05,2]
[424952375,1781339440000,-500.0,7.677e-05,2]
[424952361,1781339440000,-500.0,7.677e-05,2]
[424952364,1781339440000,-500.0,7.677e-05,2]
[424952365,1781339440000,-500.0,7.677e-05,2]
[424952367,1781339440000,-500.0,7.677e-05,2]
[424952398,1781339440000,-500.0,7.677e-05,2]
[424952372,1781339440000,-500.0,7.677e-05,2]
[424952369,1781339440000,-500.0,7.677e-05,2]
[424952368,1781339440000,-500.0,7.677e-05,2]
[424952371,1781339440000,-500.0,7.677e-05,2]
[424952370,1781339440000,-500.0,7.677e-05,2]
[424952363,1781339440000,-500.0,7.677e-05,2]
[424952397,1781339440000,-203.14049994,7.677e-05,2]
[424952395,1781339440000,-500.0,7.677e-05,2]
[424952399,1781339440000,-500.0,7.677e-05,2]
[424952427,1781339440000,-216.029201,7.809e-05,2]
[424952426,1781339440000,-160.0,7.807e-05,2]
[424952424,1781339440000,-500.0,7.776e-05,2]
[424952428,1781339440000,-2452.51,7.97e-05,2]
[424952430,1781339440000,-299.99,7.97e-05,2]
[424952429,1781339440000,-1583.15,7.97e-05,2]
[424952431,1781339440000,-4999.99,7.97e-05,2]